bitfinex/quotes_ETHUSD_20250222
["timestamp","ask_amount","ask_price","bid_price","bid_amount"]
[1740254637982,5.181599,2769.8,2769.2,3.61105]
[1740254638182,5.181599,2769.8,2769.2,7.2221]
[1740254638378,5.181599,2769.8,2769.2,3.61105]
[1740254638971,3.61053,2769.7,2769.1,8.4562]
[1740254639172,1.571129,2769.8,2769.1,4.845]
[1740254639392,1.571129,2769.8,2769.2,3.61107]
[1740254639707,1.571129,2769.8,2769.3,3.61093]
[1740254640806,1.571129,2769.8,2769.2,3.61107]
[1740254640993,5.181509,2769.8,2769.2,7.22214]
[1740254641602,1.571129,2769.8,2769.3,3.61092]
[1740254641790,1.571129,2769.8,2769.4,3.61088]
[1740254642304,0.7719,2769.8,2769.1,4.845]
[1740254642463,0.7719,2769.8,2769.7,3.61049]
[1740254642670,0.7719,2769.8,2769.5,3.61066]
[1740254643587,0.7719,2770.1,2769.6,3.6106]
[1740254643794,0.7719,2770.1,2769.7,3.61047]
[1740254643994,1.510083,2770.1,2769.7,3.61047]
[1740254646313,0.7719,2770.0,2769.5,3.61066]
[1740254647318,0.7719,2770.0,2769.6,3.61054]
[1740254648208,0.7719,2770.0,2769.4,3.61079]
[1740254648422,4.38209,2770.0,2769.4,3.61079]
[1740254648586,0.7872,2769.9,2769.4,3.61079]
[1740254649298,0.7872,2769.9,2769.3,7.48087]
[1740254649478,4.39745,2769.9,2769.3,3.86993]
[1740254649677,0.7872,2769.7,2769.1,8.4562]
[1740254649905,0.7872,2769.6,2769.1,8.7152]
[1740254650096,0.7872,2769.6,2769.2,3.61113]
[1740254652385,0.7872,2769.6,2769.1,8.45625]
[1740254653108,0.7872,2769.6,2769.1,4.845]
[1740254653412,3.61077,2769.5,2769.1,4.845]
[1740254654219,3.6111,2769.3,2769.1,4.845]
[1740254655424,4.41405,2769.2,2769.1,4.845]
[1740254657265,4.41405,2769.2,2769.1,0.005]
[1740254671565,0.8029,2769.2,2769.1,0.005]
[1740254671872,3.61081,2769.5,2769.1,0.005]
[1740254671873,0.827,2769.4,2769.1,0.005]
[1740254672165,4.59277924,2769.4,2769.1,0.05322548]
[1740254672359,4.59277924,2769.4,2769.1,0.005]
[1740254672564,4.59277924,2769.4,2769.2,0.04804104]
[1740254673464,0.76577924,2769.4,2769.2,0.04804104]
[1740254673633,4.38312,2769.3,2769.2,0.04804104]
[1740254673838,4.92601389,2769.3,2769.2,0.04804104]
[1740254674038,3.61115,2769.2,2769.1,0.005]
[1740254674239,4.38325,2769.2,2769.1,0.005]
[1740254674428,4.38325,2769.2,2769.1,0.05318865]
[1740254674630,4.38325,2769.2,2769.1,0.005]
[1740254674969,4.823031,2769.2,2769.1,0.005]
[1740254675139,4.823031,2769.2,2769.1,0.05310763]
[1740254680267,4.81586753,2769.2,2769.1,0.05310763]
[1740254686708,3.61102,2769.3,2769.1,0.05310763]
[1740254686999,3.0,2769.4,2769.1,0.05310763]
[1740254687205,6.61092,2769.4,2769.1,0.05310763]
[1740254690441,3.0,2769.4,2769.2,0.8206]
[1740254690640,3.61067,2769.6,2769.2,0.8206]
[1740254691004,3.61067,2769.6,2769.3,0.0523668]
[1740254691357,3.61067,2769.6,2769.2,0.8206]
[1740254691518,3.61067,2769.6,2769.3,0.0523668]
[1740254691712,3.61067,2769.6,2769.2,0.8206]
[1740254692043,7.2214,2769.6,2769.3,0.0523668]
[1740254692541,7.2214,2769.6,2769.4,0.05220445]
[1740254692755,7.2214,2769.6,2769.2,0.8206]
[1740254692932,7.2214,2769.6,2769.3,0.0523668]
[1740254693129,7.2214,2769.6,2769.2,0.8206]
[1740254693353,3.61067,2769.6,2769.3,0.0523668]
[1740254693646,3.61067,2769.6,2769.2,0.8206]
[1740254693799,3.61067,2769.6,2769.4,0.05220445]
[1740254694146,3.61067,2769.6,2769.5,0.05204212]
[1740254694443,3.61067,2769.6,2769.2,0.8206]
[1740254694643,3.61067,2769.6,2769.5,0.05204212]
[1740254695202,3.61067,2769.6,2769.2,0.8206]
[1740254695400,3.61067,2769.6,2769.5,0.05204212]
[1740254695565,3.61067,2769.6,2769.2,0.8206]
[1740254695764,3.61067,2769.6,2769.5,0.05204212]
[1740254696099,3.61067,2769.6,2769.2,0.8206]
[1740254696299,3.61067,2769.6,2769.5,0.05204212]
[1740254696796,3.61067,2769.6,2769.2,0.8206]
[1740254696978,3.61067,2769.6,2769.5,0.05204212]
[1740254697165,3.61067,2769.6,2769.2,0.8206]
[1740254697403,3.61067,2769.6,2769.5,0.05204212]
[1740254697695,3.61067,2769.6,2769.2,0.8206]
[1740254697900,3.61067,2769.6,2769.5,0.05204212]
[1740254698096,3.61067,2769.6,2769.2,0.8206]
[1740254698605,3.61067,2769.6,2769.3,0.0523668]
[1740254698910,3.61067,2769.6,2769.2,0.8206]
[1740254699215,3.61067,2769.6,2769.3,0.0523668]
[1740254699588,3.61067,2769.6,2769.2,0.8206]
[1740254699815,3.61067,2769.6,2769.4,0.05220445]
[1740254700014,0.7866,2769.7,2769.3,0.0523668]
[1740254700217,3.61053,2769.7,2769.3,0.0523668]
[1740254700412,3.61053,2769.7,2769.2,0.8206]
[1740254700614,3.6107,2769.6,2769.4,0.05220445]
[1740254700793,3.61089,2769.4,2769.3,0.0523668]
[1740254700989,3.61089,2769.4,2769.2,0.8206]
[1740254701992,3.6107,2769.6,2769.2,0.8206]
[1740254702512,7.22143,2769.6,2769.2,0.8206]
[1740254702814,3.61076,2769.5,2769.2,0.8206]
[1740254703614,3.6109,2769.4,2769.1,0.005]
[1740254704194,3.61115,2769.2,2769.1,0.005]
[1740254706981,3.61102,2769.3,2769.1,0.005]
[1740254707823,3.61102,2769.3,2769.2,0.05200259]
[1740254708125,3.61082,2769.5,2769.2,0.87000259]
[1740254710082,8.02673,2769.7,2769.2,0.87000259]
[1740254710413,3.61075,2769.6,2769.2,0.87000259]
[1740254711419,3.61053,2769.7,2769.2,4.48112259]
[1740254711623,7.22113,2769.7,2769.2,1.67974685]
[1740254711819,3.61053,2769.7,2769.2,1.67974685]
[1740254712120,3.61053,2769.7,2769.2,5.29087685]
[1740254712625,3.61053,2769.7,2769.2,1.67974685]
[1740254713127,3.61053,2769.7,2769.2,5.29088685]
[1740254713293,3.61053,2769.7,2769.3,0.52958869]
[1740254713751,3.61053,2769.7,2769.4,0.05181559]
[1740254714494,4.41589,2769.9,2769.4,0.05181559]
[1740254714495,3.61041,2769.8,2769.4,0.05181559]
[1740254715531,3.61029,2769.9,2769.5,0.8225]
[1740254715933,3.61029,2769.9,2769.6,0.05126414]
[1740254716332,0.7506,2769.9,2769.6,0.05126414]
[1740254716492,3.61049,2769.7,2769.3,0.8225]
[1740254716700,3.61049,2769.7,2769.4,0.0515807]
[1740254718915,4.36084,2769.9,2769.4,0.0515807]
[1740254718916,4.36084,2769.9,2769.4,3.6624407]
[1740254719135,3.71015,2770.0,2769.5,0.8225]
[1740254719341,3.71015,2770.0,2769.6,0.05119935]
[1740254721016,0.1,2770.0,2769.6,0.05119935]
[1740254721209,3.71011,2770.0,2769.6,0.05119935]
[1740254721407,0.1,2770.0,2769.6,0.05119935]
[1740254722213,0.1,2770.0,2769.6,0.86072229]
[1740254723029,3.71022,2770.0,2769.6,0.86072229]
[1740254723254,3.71022,2770.0,2769.6,0.05119935]
[1740254723552,0.1,2770.0,2769.6,0.05119935]
[1740254724733,0.1,2770.0,2769.7,4.3616]
[1740254724955,0.1,2770.0,2769.8,0.05610458]
[1740254729162,0.1,2770.0,2769.9,0.818]
[1740254729491,0.1,2770.0,2769.9,1.69040126]
[1740254730193,0.1,2770.0,2769.9,5.30063126]
[1740254737737,0.1,2770.0,2769.9,1.69040126]
[1740254742869,0.1,2770.0,2769.9,0.0629148]
[1740254743075,4.4681,2770.0,2769.9,0.0629148]
[1740254743259,3.61042,2769.8,2769.4,0.7897]
[1740254745693,3.61049,2769.7,2769.3,13.74]
[1740254746043,3.61042,2769.8,2769.3,13.74]
[1740254746361,3.61042,2769.8,2769.4,1.814077]
[1740254748090,3.6105,2769.7,2769.4,1.814077]
[1740254748464,0.7913,2769.6,2769.4,1.814077]
[1740254748658,4.40195,2769.6,2769.3,4.84]
[1740254752077,3.61112,2769.3,2769.1,0.005]
[1740254752276,4.39275,2769.2,2769.1,0.005]
[1740254752969,4.39275,2769.2,2769.1,0.06243919]
[1740254760388,5.193127,2769.2,2769.1,0.06243919]
[1740254761914,8.193127,2769.2,2769.1,0.06243919]
[1740254762239,8.193127,2769.2,2769.1,0.005]
[1740254764150,3.0,2769.1,2767.9,4.12176767]
[1740254764350,3.61248,2768.2,2767.9,4.12176767]
[1740254764644,3.61248,2768.2,2768.0,0.04908394]
[1740254765221,3.61258,2768.1,2768.0,0.04908394]
[1740254765615,3.6124,2768.3,2767.6,16.61641]
[1740254765853,4.39386,2768.4,2768.0,0.04982781]
[1740254766147,3.6124,2768.3,2767.7,3.61301]
[1740254766309,3.6124,2768.3,2768.1,0.04968746]
[1740254766506,3.6124,2768.3,2767.7,3.61301]
[1740254766710,3.6124,2768.3,2768.2,0.04953974]
[1740254767058,3.61248,2768.2,2767.6,13.0032]
[1740254767455,3.61287,2767.9,2767.6,8.1632]
[1740254767667,3.61305,2767.8,2767.7,0.05036683]
[1740254767961,7.22584,2767.9,2767.7,0.05036683]
[1740254768367,3.61287,2767.9,2767.7,0.05036683]
[1740254768517,0.8259,2768.0,2767.7,0.05036683]
[1740254768719,4.882505,2768.0,2767.7,0.05036683]
[1740254769261,3.61285,2767.9,2767.7,0.05036683]
[1740254770165,3.61297,2767.8,2767.7,0.05036683]
[1740254770766,7.79570433,2767.8,2767.7,0.05036683]
[1740254770965,3.61357,2767.4,2766.8,0.7878]
[1740254771167,3.61363,2767.3,2766.8,0.7878]
[1740254771370,3.61363,2767.3,2766.9,0.0427978]
[1740254771608,3.61377,2767.2,2766.9,0.0427978]
[1740254771775,3.61402,2767.0,2766.9,0.0427978]
[1740254772464,4.42702,2767.0,2766.9,0.0427978]
[1740254772667,5.592488,2767.0,2766.9,0.0427978]
[1740254772864,3.6142,2766.9,2766.5,0.8028]
[1740254773493,5.592488,2767.0,2766.5,0.8028]
[1740254773696,3.61417,2766.9,2766.5,0.8028]
[1740254774118,3.61417,2766.9,2766.3,0.8028]
[1740254774303,3.6143,2766.8,2766.3,0.8028]
[1740254776083,3.61472,2766.5,2766.0,1.0618]
[1740254776277,0.5592768,2766.8,2766.0,0.8028]
[1740254776278,3.61491,2766.4,2766.0,0.8028]
[1740254776603,3.61496,2766.3,2765.9,7.38]
[1740254776976,3.61491,2766.4,2765.9,7.38]
[1740254777177,0.813,2766.6,2765.9,7.38]
[1740254777414,3.6149,2766.4,2765.9,7.38]
[1740254777618,0.36149,2766.3,2765.9,7.38]
[1740254779504,3.61481,2766.4,2765.9,7.38]
[1740254780011,1.3841768,2766.8,2766.2,3.61501]
[1740254780220,4.9985768,2766.8,2766.0,4.42802]
[1740254780909,7.22926,2766.6,2766.0,0.8128]
[1740254781117,4.43982,2766.4,2766.0,0.8128]
[1740254781315,0.8249,2766.4,2766.0,0.8128]
[1740254781723,0.8249,2766.6,2766.0,0.8128]
[1740254781882,0.8249,2766.6,2766.0,4.42812]
[1740254782087,1.41937995,2766.6,2766.0,4.42812]
[1740254782286,3.61488,2766.4,2766.0,0.8128]
[1740254782623,3.61488,2766.4,2766.1,0.04500306]
[1740254782926,3.61475,2766.5,2766.1,0.04500306]
[1740254783222,4.058605,2766.5,2766.1,0.04500306]
[1740254783420,3.61487,2766.4,2766.1,0.04500306]
[1740254783784,4.058605,2766.5,2766.1,0.04500306]
[1740254784020,3.61486,2766.4,2766.1,0.04500306]
[1740254784604,3.61494,2766.3,2766.1,0.04500306]
[1740254785201,3.61482,2766.4,2766.1,0.04500306]
[1740254785411,7.673395,2766.5,2766.1,0.04500306]
[1740254785725,4.058605,2766.5,2766.1,0.04500306]
[1740254785928,4.1740968,2766.4,2766.1,0.04500306]
[1740254786243,0.5592768,2766.4,2765.9,7.38]
[1740254786428,4.43988,2766.3,2766.2,0.04409104]
[1740254786591,3.6152,2766.1,2765.9,7.38]
[1740254786926,3.6152,2766.1,2766.0,0.04434139]
[1740254787844,3.61513,2766.2,2766.0,0.04434139]
[1740254790438,3.61513,2766.2,2765.6,0.8128]
[1740254790633,1.251655,2766.5,2765.7,0.8461043]
[1740254790834,4.866335,2766.5,2765.8,3.61548]
[1740254791010,4.866335,2766.5,2765.9,0.0445539]
[1740254791498,3.61489,2766.4,2765.9,0.0445539]
[1740254791698,0.4866545,2766.3,2765.9,0.0445539]
[1740254792000,0.4866545,2766.3,2766.0,0.04442872]
[1740254792502,0.4866545,2766.3,2765.7,4.41693]
[1740254792704,3.61489,2766.4,2766.1,0.04432225]
[1740254792900,3.0,2766.7,2766.1,0.7525]
[1740254793230,3.61488,2766.4,2766.2,0.04415342]
[1740254793403,3.6148,2766.5,2766.2,0.04415342]
[1740254793602,6.61448,2766.7,2766.2,0.04415342]
[1740254793603,3.61448,2766.7,2766.2,0.04415342]
[1740254793802,5.57569343,2766.7,2766.2,0.04415342]
[1740254794003,9.19023343,2766.7,2766.2,0.04415342]
[1740254794752,5.57569343,2766.7,2766.2,0.04415342]
[1740254796623,1.96121343,2766.7,2766.2,0.04415342]
[1740254798241,5.57564343,2766.7,2766.2,0.04415342]
[1740254798458,3.61469,2766.5,2766.2,0.04415342]
[1740254798660,0.63622434,2766.6,2766.2,0.04415342]
[1740254799519,4.25078434,2766.6,2766.2,0.04415342]
[1740254799719,0.63622434,2766.6,2766.2,0.04415342]
[1740254799927,0.7866,2766.8,2766.3,3.61486]
[1740254800159,5.24,2766.9,2766.4,0.7525]
[1740254800515,5.24,2766.9,2766.5,0.04379669]
[1740254800715,9.97137433,2766.6,2766.5,0.04379669]
[1740254800917,8.58067276,2766.6,2765.9,0.7525]
[1740254801111,2.22383843,2766.6,2765.9,4.36795]
[1740254801343,6.0266,2766.9,2766.1,0.7525]
[1740254801554,9.64079,2766.9,2766.4,0.7525]
[1740254801753,6.0266,2766.9,2766.4,0.7525]
[1740254801970,3.61454,2766.6,2766.5,0.04373432]
[1740254802170,7.75797433,2766.6,2766.5,0.04373432]
[1740254802473,3.61494,2766.3,2765.8,0.7525]
[1740254802940,3.61528,2766.1,2765.8,0.7525]
[1740254803273,4.40188,2766.1,2765.6,0.7525]
[1740254803582,3.61572,2765.7,2765.6,0.7525]
[1740254803731,3.61553,2765.9,2765.5,7.385]
[1740254803931,3.61572,2765.7,2765.5,7.385]
[1740254804170,3.977173,2765.8,2765.5,7.385]
[1740254804669,3.977173,2765.8,2765.2,4.36885]
[1740254804875,0.361553,2765.8,2765.2,4.36885]
[1740254805183,3.61553,2765.9,2765.2,4.36878]
[1740254805350,7.2311,2765.9,2765.2,4.36878]
[1740254805536,3.61553,2765.9,2765.3,0.33881811]
[1740254806838,7.23108,2765.9,2765.3,0.33881811]
[1740254807178,3.61578,2765.7,2765.2,0.7525]
[1740254807386,3.61553,2765.9,2765.2,4.36887]
[1740254807387,7.2311,2765.9,2765.2,4.36887]
[1740254807548,1.05879343,2765.8,2765.2,0.7525]
[1740254807750,1.05879343,2765.8,2764.6,4.9886102]
[1740254807751,3.35683433,2765.4,2764.6,4.9886102]
[1740254807950,3.61648,2765.2,2764.6,8.6057502]
[1740254808637,3.61648,2765.2,2764.6,4.9886102]
[1740254808982,3.61665,2765.0,2764.6,0.1486102]
[1740254809184,0.7916,2764.9,2764.6,0.1486102]
[1740254809389,9.97385433,2764.7,2764.6,0.1486102]
[1740254809684,3.61698,2764.8,2764.6,0.1486102]
[1740254809847,0.78687857,2765.2,2764.6,0.1486102]
[1740254809848,3.6165,2765.1,2764.6,3.7657302]
[1740254810046,4.13599786,2765.1,2764.7,0.04421015]
[1740254810248,0.51949786,2765.1,2764.7,0.04421015]
[1740254810504,3.61673,2765.0,2764.7,0.04421015]
[1740254810848,0.51949786,2765.1,2764.7,0.04421015]
[1740254811371,3.61666,2765.0,2764.7,0.04421015]
[1740254811588,0.51949786,2765.1,2764.7,0.04421015]
[1740254811982,4.40328857,2765.2,2764.7,0.04421015]
[1740254812184,3.61641,2765.2,2764.7,0.04421015]
[1740254812388,3.61676,2765.0,2764.7,0.04421015]
[1740254812585,3.61638,2765.2,2764.7,0.04421015]
[1740254812785,3.61651,2765.1,2764.7,0.04421015]
[1740254812991,3.61663,2765.0,2764.7,0.04421015]
[1740254813176,3.61689,2764.8,2764.7,0.04421015]
[1740254815368,3.61702,2764.7,2764.6,0.1486102]
[1740254816091,6.61702,2764.7,2764.6,0.1486102]
[1740254816294,3.773,2764.6,2764.1,0.005]
[1740254816610,6.97451433,2764.2,2764.1,0.005]
[1740254816811,4.67688543,2764.2,2764.1,0.005]
[1740254816990,0.773,2764.6,2764.1,0.04942537]
[1740254817160,3.61736,2764.5,2764.1,0.005]
[1740254817358,3.61736,2764.5,2764.2,0.04450041]
[1740254817807,0.361663,2765.0,2764.3,0.8153]
[1740254817964,0.361663,2765.0,2764.3,4.43277]
[1740254818162,3.61686,2764.9,2764.4,0.04439529]
[1740254818363,3.61691,2764.8,2764.4,0.04439529]
[1740254819565,0.7595163,2764.9,2764.4,0.04439529]
[1740254820490,0.361663,2765.0,2764.5,3.61728]
[1740254820707,3.978293,2765.0,2764.4,3.66179529]
[1740254820863,3.978293,2765.0,2764.5,0.04427892]
[1740254821306,0.361663,2765.0,2764.5,0.04427892]
[1740254821511,3.617,2764.8,2764.5,0.04427892]
[1740254821717,3.978363,2765.0,2764.5,0.04427892]
[1740254822014,3.61651,2765.1,2764.5,3.61721]
[1740254822190,3.61651,2765.1,2764.6,0.04416256]
[1740254822514,3.61645,2765.2,2764.6,0.04416256]
[1740254823009,3.61645,2765.2,2764.6,3.66129256]
[1740254823179,3.61653,2765.1,2764.6,0.04416256]
[1740254823385,3.61669,2765.0,2764.4,3.61739]
[1740254823571,3.61653,2765.1,2764.7,0.0440462]
[1740254823773,4.94111,2765.1,2764.5,3.61721]
[1740254824389,4.94111,2765.1,2764.6,0.04416256]
[1740254825315,1.32458,2765.1,2764.6,0.04416256]
[1740254825614,4.94111,2765.1,2764.6,0.04416256]
[1740254825824,9.6293,2765.3,2764.6,0.04416256]
[1740254825825,5.24,2765.3,2764.6,0.04416256]
[1740254826110,5.24,2765.3,2764.1,0.005]
[1740254826111,4.40425,2765.6,2765.0,3.61654]
[1740254826416,3.61614,2765.4,2764.8,3.61688]
[1740254826625,4.40425,2765.6,2765.1,0.04320378]
[1740254826797,4.056415,2765.5,2764.9,3.61668]
[1740254827181,5.24,2765.8,2765.3,3.61615]
[1740254827512,0.8139,2765.9,2765.3,3.61615]
[1740254827513,4.42936,2765.9,2765.3,3.61615]
[1740254827715,3.61545,2766.0,2765.3,3.61615]
[1740254827910,3.6152,2766.1,2765.3,3.61615]
[1740254827911,3.61546,2765.9,2765.4,0.04562045]
[1740254828887,3.6152,2766.1,2765.7,0.759]
[1740254829073,0.36152,2766.0,2765.8,0.04511333]
[1740254829274,8.59683433,2766.4,2765.8,0.04511333]
[1740254829275,5.24,2766.4,2765.8,0.04511333]
[1740254829503,3.61503,2766.3,2765.8,0.04511333]
[1740254829705,3.61522,2766.1,2765.8,0.04511333]
[1740254830655,3.61533,2766.0,2765.8,0.04511333]
[1740254834247,3.61545,2765.9,2765.8,0.04511333]
[1740254835104,3.61533,2766.0,2765.8,0.04511333]
[1740254835408,3.61545,2765.9,2765.8,0.04511333]
[1740254835803,3.61605,2765.5,2765.3,0.8185]
[1740254836005,3.35683433,2765.8,2765.0,0.8185]
[1740254836331,4.12173433,2765.5,2764.9,7.389]
[1740254836646,3.61663,2765.0,2764.9,7.389]
[1740254837460,3.0,2765.4,2764.9,7.389]
[1740254837461,3.61647,2765.2,2764.9,7.389]
[1740254837650,3.61575,2765.7,2765.0,0.8185]
[1740254837803,4.57493436,2765.7,2765.1,3.61641]
[1740254838035,8.19077436,2765.7,2765.1,3.61641]
[1740254838349,4.57493436,2765.7,2765.1,3.61641]
[1740254838858,3.61588,2765.6,2765.1,3.61641]
[1740254839641,3.61588,2765.6,2765.0,0.8185]
[1740254839985,3.61606,2765.5,2765.0,0.8185]
[1740254840283,3.61665,2765.0,2764.6,0.8185]
[1740254840837,4.38132,2765.2,2764.6,4.43562]
[1740254841249,3.61642,2765.2,2764.6,0.8185]
[1740254841574,3.61625,2765.3,2764.6,0.8185]
[1740254841746,0.438115,2765.2,2764.7,3.617]
[1740254842253,12.47211,2765.5,2764.8,3.61687]
[1740254842448,8.85603,2765.5,2764.9,3.61668]
[1740254842673,8.85603,2765.5,2765.0,0.04435519]
[1740254843181,12.47212,2765.5,2765.0,0.04435519]
[1740254843345,8.85603,2765.5,2765.0,0.04435519]
[1740254843553,1.01567821,2765.4,2765.0,0.04435519]
[1740254843951,3.61624,2765.3,2765.0,0.04435519]
[1740254844248,1.01567821,2765.4,2764.8,3.61685]
[1740254844448,3.61612,2765.4,2764.9,0.04449296]
[1740254844785,3.61639,2765.2,2764.9,0.04449296]
[1740254845143,3.61639,2765.2,2764.6,4.43565]
[1740254845521,3.6165,2765.1,2764.6,0.8185]
[1740254845711,3.61674,2765.0,2764.7,0.04474354]
[1740254846729,3.61677,2764.9,2764.7,0.04474354]
[1740254847225,4.416484,2765.0,2764.7,0.04474354]
[1740254847728,8.033224,2765.0,2764.7,0.04474354]
[1740254848025,0.799814,2765.0,2764.7,0.04474354]
[1740254848230,3.61678,2764.9,2764.7,0.04474354]
[1740254848528,3.61655,2765.1,2764.7,0.04474354]
[1740254848702,3.61664,2765.0,2764.7,0.04474354]
[1740254849334,4.38128,2765.2,2764.7,0.04474354]
[1740254849534,0.799,2765.5,2764.8,3.61678]
[1740254849700,4.41505,2765.5,2764.9,3.61667]
[1740254849901,4.41505,2765.5,2765.0,0.04436768]
[1740254850105,8.03115,2765.5,2765.0,0.04436768]
[1740254850431,3.61611,2765.4,2765.0,0.04436768]
[1740254852642,3.61612,2765.4,2765.1,0.7686]
[1740254852793,3.61632,2765.3,2765.1,0.7686]
[1740254852998,3.61632,2765.3,2765.2,0.04985302]
[1740254854334,3.61632,2765.3,2764.8,0.7686]
[1740254854635,3.61638,2765.2,2764.8,0.7686]
[1740254854846,3.61638,2765.2,2764.9,0.04611924]
[1740254855141,0.72327,2765.2,2764.9,0.04611924]
[1740254855445,3.61632,2765.3,2764.9,0.04611924]
[1740254855735,3.61637,2765.2,2764.9,0.04611924]
[1740254857120,3.61632,2765.3,2764.9,0.04611924]
[1740254857443,3.61591,2765.6,2765.0,3.61655]
[1740254857757,3.61605,2765.5,2765.1,0.0500158]
[1740254857922,3.0,2765.6,2765.2,0.7686]
[1740254858110,3.661579,2765.6,2765.2,0.7686]
[1740254858312,0.661579,2765.6,2765.3,0.04976398]
[1740254858651,0.661579,2765.6,2765.2,0.7686]
[1740254858819,3.661579,2765.6,2765.4,0.04961597]
[1740254859154,3.661579,2765.6,2765.2,0.7686]
[1740254859320,0.661579,2765.6,2765.2,4.38493]
[1740254859647,7.23107,2765.9,2765.3,3.61614]
[1740254859955,3.61552,2765.9,2765.3,3.61614]
[1740254860253,3.61572,2765.7,2765.2,0.7686]
[1740254860545,3.61552,2765.9,2765.2,0.7686]
[1740254860750,0.963192,2765.8,2765.3,3.61621]
[1740254861253,4.578852,2765.8,2765.3,3.61621]
[1740254861545,3.61579,2765.7,2765.2,0.7686]
[1740254861724,3.61579,2765.7,2765.2,4.38493]
[1740254862127,0.963192,2765.8,2765.4,3.61609]
[1740254862326,0.963192,2765.8,2765.2,0.7686]
[1740254862327,4.578792,2765.8,2765.3,3.61617]
[1740254862527,0.963192,2765.8,2765.3,3.61617]
[1740254863044,4.578782,2765.8,2765.3,3.61617]
[1740254863209,3.61574,2765.7,2765.2,0.7686]
[1740254863414,3.61574,2765.7,2765.2,4.38493]
[1740254863615,0.963192,2765.8,2765.2,4.38493]
[1740254863818,4.578792,2765.8,2765.2,4.38493]
[1740254866232,0.963192,2765.8,2765.5,3.61593]
[1740254866574,6.97210433,2766.1,2765.5,3.61593]
[1740254866575,3.61508,2766.2,2765.7,3.61572]
[1740254867990,3.61494,2766.3,2765.7,3.61562]
[1740254869155,3.61481,2766.4,2765.8,3.61558]
[1740254869362,0.439121,2766.3,2765.8,3.61558]
[1740254870065,11.85461,2766.6,2766.0,0.8201]
[1740254870066,3.61461,2766.6,2766.0,0.8201]
[1740254870229,3.61452,2766.7,2766.0,8.05055]
[1740254870429,4.38469,2766.8,2766.1,3.61512]
[1740254870761,7.99908,2766.8,2766.1,3.61512]
[1740254871166,3.61446,2766.7,2766.1,3.61512]
[1740254872889,3.61454,2766.6,2766.2,0.05240793]
[1740254873384,3.61454,2766.6,2766.3,0.05224522]
[1740254873874,3.61454,2766.6,2766.0,4.43542]
[1740254874074,3.61454,2766.6,2766.4,0.05208253]
[1740254874239,3.61454,2766.6,2766.0,4.43542]
[1740254874442,3.61454,2766.6,2766.5,0.05191984]
[1740254874672,3.61454,2766.6,2766.0,4.43542]
[1740254874880,3.61454,2766.6,2766.5,0.05191984]
[1740254875058,3.61454,2766.6,2766.0,4.43542]
[1740254875264,3.61454,2766.6,2766.5,0.05191984]
[1740254875504,3.61454,2766.6,2766.0,5.240518]
[1740254875642,3.61454,2766.6,2766.5,0.05191984]
[1740254875839,3.61454,2766.6,2766.0,8.855768]
[1740254876038,3.61454,2766.6,2766.5,0.05138484]
[1740254876544,3.61454,2766.6,2766.1,3.61517]
[1740254876845,3.61454,2766.6,2766.5,0.05138484]
[1740254877046,3.61454,2766.6,2766.1,3.61517]
[1740254877253,3.61454,2766.6,2766.5,0.05709427]
[1740254877547,3.61454,2766.6,2766.5,0.05138484]
[1740254878078,3.61454,2766.6,2766.1,3.61517]
[1740254878245,3.61454,2766.6,2766.5,0.05138484]
[1740254878445,3.61454,2766.6,2766.1,3.61517]
[1740254878645,3.61454,2766.6,2766.5,0.05138484]
[1740254878841,3.61475,2766.5,2765.9,3.61545]
[1740254879046,3.61454,2766.6,2766.5,0.05138484]
[1740254879244,3.61526,2766.1,2765.7,4.84]
[1740254879544,3.61526,2766.1,2765.8,0.05227264]
[1740254879939,4.3936,2766.3,2765.6,0.7854]
[1740254880189,3.615,2766.3,2765.9,0.05210989]
[1740254880392,4.39333,2766.5,2765.9,0.36677299]
[1740254880690,4.39333,2766.5,2766.0,0.83734714]
[1740254881246,3.61495,2766.3,2766.0,0.83734714]
[1740254884503,4.39335,2766.5,2766.0,0.83734714]
[1740254884681,3.61475,2766.5,2766.0,0.83734714]
[1740254885807,3.61446,2766.7,2766.0,1.64416885]
[1740254885970,9.0186,2767.0,2766.0,0.83734714]
[1740254886172,7.22922,2766.6,2766.0,0.83734714]
[1740254886907,3.61458,2766.6,2766.0,0.83734714]
[1740254887067,3.61469,2766.5,2766.0,4.45266714]
[1740254887270,3.61483,2766.4,2766.0,0.83734714]
[1740254888697,3.61458,2766.6,2766.0,4.45265714]
[1740254889265,3.61458,2766.6,2766.0,5.28576485]
[1740254889674,3.61458,2766.6,2766.1,3.61512]
[1740254889894,7.22871,2766.8,2766.2,3.61506]
[1740254890203,3.61435,2766.8,2766.2,3.66694914]
[1740254890768,3.61419,2766.9,2766.3,7.99642]
[1740254890968,3.61419,2766.9,2766.3,4.38154]
[1740254891169,3.61419,2766.9,2766.4,0.05134492]
[1740254894003,3.61419,2766.9,2766.4,0.49463341]
[1740254895907,3.61419,2766.9,2766.4,4.10942341]
[1740254898034,3.61419,2766.9,2766.4,0.49463341]
[1740254902740,3.61419,2766.9,2766.4,4.10942341]
[1740254902905,3.61419,2766.9,2766.4,0.49463341]
[1740254903233,3.61419,2766.9,2766.4,0.05134492]
[1740254911446,3.61419,2766.9,2766.4,3.66613492]
[1740254916651,3.61429,2766.8,2766.4,0.05134492]
[1740254917809,3.61419,2766.9,2766.4,0.05134492]
[1740254919752,7.22845,2766.9,2766.4,0.05134492]
[1740254919923,3.61419,2766.9,2766.4,0.05134492]
[1740254920852,3.61419,2766.9,2766.3,3.88290492]
[1740254921026,3.61419,2766.9,2766.5,0.06010023]
[1740254921347,3.61419,2766.9,2766.6,0.05989689]
[1740254921555,3.61419,2766.9,2766.3,7.49776492]
[1740254921939,3.61419,2766.9,2766.4,0.06030359]
[1740254923048,0.8067,2767.4,2766.8,3.61421]